bitfinex/quotes_ETHUSD_20240902
["timestamp","ask_amount","ask_price","bid_price","bid_amount"]
[1725298343263,3.9651,2522.0,2521.6,0.09347003]
[1725298343486,2.4956,2522.2,2521.8,3.96534]
[1725298343628,6.44645,2522.5,2521.9,3.96513]
[1725298343957,6.3642,2522.7,2522.2,3.96471]
[1725298344173,6.3642,2522.7,2522.2,23.94471]
[1725298344364,6.3642,2522.7,2522.3,4.05844312]
[1725298344670,3.96385,2522.8,2522.3,4.05837312]
[1725298345209,7.92779,2522.8,2522.3,4.05837312]
[1725298345621,3.96385,2522.8,2522.3,4.05837312]
[1725298345841,3.96385,2522.8,2522.3,10.82325343]
[1725298346205,3.96385,2522.8,2522.3,2.89415343]
[1725298346552,3.9641,2522.7,2522.3,0.09383312]
[1725298347555,3.96385,2522.8,2522.3,4.05833312]
[1725298348988,2.4001,2522.9,2522.4,3.96441]
[1725298349291,3.96338,2523.1,2522.6,2.4611]
[1725298349647,3.96338,2523.1,2522.7,0.09323491]
[1725298350256,2.3365,2523.4,2522.8,3.96383]
[1725298350460,4.22412093,2523.9,2523.3,3.96294]
[1725298350461,3.96213,2523.9,2523.3,3.96294]
[1725298350859,3.96238,2523.8,2523.4,0.09259929]
[1725298351093,3.96245,2523.7,2523.4,0.09259929]
[1725298351248,3.96245,2523.7,2523.3,19.98]
[1725298351445,3.96222,2523.9,2523.5,0.09254898]
[1725298351647,3.96222,2523.9,2523.4,0.09258513]
[1725298351851,3.96222,2523.9,2523.6,0.09236412]
[1725298352176,3.96222,2523.9,2523.5,0.09241443]
[1725298352384,3.96222,2523.9,2523.7,0.09231382]
[1725298352717,3.96131,2524.5,2523.9,3.96202]
[1725298352867,3.96113,2524.6,2524.0,20.46465933]
[1725298353067,3.96113,2524.6,2524.0,20.07190805]
[1725298353270,3.96113,2524.6,2524.0,24.03385805]
[1725298353446,3.96113,2524.6,2524.1,19.98]
[1725298353652,3.96145,2524.4,2524.1,19.98]
[1725298353907,3.96145,2524.4,2524.2,0.09053968]
[1725298354210,2.3709,2524.7,2524.2,0.09053968]
[1725298354499,3.96081,2524.8,2524.2,2.09759365]
[1725298354645,3.96089,2524.7,2524.2,0.09053968]
[1725298355049,3.96081,2524.8,2524.2,0.09053968]
[1725298355050,3.96149,2524.3,2524.2,0.09053968]
[1725298355277,6.3726,2524.8,2524.2,0.09053968]
[1725298355497,7.73227209,2524.8,2524.2,0.09053968]
[1725298355966,3.96113,2524.6,2524.2,0.09053968]
[1725298356608,7.73227209,2524.8,2524.2,0.09053968]
[1725298357176,3.96103,2524.6,2524.2,0.09053968]
[1725298357714,11.69308209,2524.8,2524.2,0.09053968]
[1725298357910,3.96088,2524.7,2524.2,0.09053968]
[1725298358713,3.0,2525.0,2524.2,0.16977221]
[1725298358865,3.0,2525.0,2524.4,3.96124]
[1725298358866,6.96048,2525.0,2524.4,3.96124]
[1725298359065,6.96048,2525.0,2524.2,4.05210968]
[1725298359066,3.96059,2524.9,2524.2,4.05204968]
[1725298359302,10.92102,2525.0,2524.5,0.08997846]
[1725298359507,10.92102,2525.0,2524.3,4.36659097]
[1725298359508,6.96048,2525.0,2524.4,23.94133]
[1725298359710,6.96048,2525.0,2524.6,0.08992819]
[1725298359906,0.944598,2524.9,2524.5,0.08997846]
[1725298360219,6.92552898,2525.0,2524.6,0.08992819]
[1725298360429,3.96065,2524.9,2524.4,23.94133]
[1725298360638,2.365,2525.5,2524.8,3.96061]
[1725298360835,3.95955,2525.6,2525.0,3.96038]
[1725298361132,3.95955,2525.6,2525.1,0.08956373]
[1725298361723,6.33371,2525.8,2525.1,0.08956373]
[1725298362495,3.95921,2525.8,2525.2,3.95999]
[1725298363036,3.95921,2525.8,2525.3,0.08944203]
[1725298363037,3.95941,2525.7,2525.3,0.08944203]
[1725298363385,3.95941,2525.7,2525.4,0.08902406]
[1725298363587,3.95853,2526.2,2525.6,3.95937]
[1725298363828,3.95869,2526.1,2525.7,0.08875319]
[1725298364139,3.95884,2526.0,2525.5,2.376]
[1725298364327,3.95884,2526.0,2525.8,0.08747204]
[1725298364535,3.95884,2526.0,2525.4,7.91933]
[1725298364718,3.95884,2526.0,2525.9,0.08740769]
[1725298365032,3.95918,2525.8,2525.2,3.96007]
[1725298365238,3.95918,2525.8,2525.3,0.08765956]
[1725298365388,3.95918,2525.8,2525.2,3.96007]
[1725298365591,3.95918,2525.8,2525.3,0.08685833]
[1725298365791,3.95918,2525.8,2525.2,3.96007]
[1725298366091,1.05570009,2525.8,2525.3,0.08685833]
[1725298366316,3.95956,2525.6,2525.3,0.08685833]
[1725298366529,3.95956,2525.6,2525.0,3.9603]
[1725298366742,3.95956,2525.6,2525.4,0.08672327]
[1725298366892,3.95956,2525.6,2525.0,3.9603]
[1725298367098,3.95956,2525.6,2525.5,0.08667304]
[1725298367294,3.95956,2525.6,2525.1,3.96023]
[1725298367498,3.95937,2525.7,2525.5,0.08680735]
[1725298367793,3.95937,2525.7,2525.1,3.96023]
[1725298367794,7.91876,2525.7,2525.1,3.96023]
[1725298367995,7.91879,2525.7,2525.1,3.96023]
[1725298368231,3.95957,2525.6,2525.2,0.08695805]
[1725298368543,3.95961,2525.5,2525.0,4.38273096]
[1725298368755,3.95961,2525.5,2525.3,0.08690781]
[1725298369036,3.95961,2525.5,2525.4,0.08685758]
[1725298369339,3.95961,2525.5,2524.9,6.67143]
[1725298370135,3.95961,2525.5,2525.0,0.08705854]
[1725298370334,3.95961,2525.5,2525.0,20.06705854]
[1725298370902,3.95989,2525.4,2525.0,20.06705854]
[1725298371107,3.95994,2525.3,2525.0,0.08705854]
[1725298371922,3.96008,2525.2,2525.0,0.08705854]
[1725298372245,4.752072,2525.2,2525.0,0.08705854]
[1725298372552,3.96008,2525.2,2525.0,0.08705854]
[1725298373049,3.95984,2525.4,2525.0,0.08705854]
[1725298373412,3.95996,2525.3,2525.0,0.08705854]
[1725298375051,3.96009,2525.2,2525.0,0.08705854]
[1725298376259,7.92029,2525.2,2525.0,0.08705854]
[1725298376745,3.96023,2525.1,2525.0,0.08705854]
[1725298377508,4.355337,2525.7,2525.0,4.04735854]
[1725298377709,9.64742093,2525.9,2525.0,4.04735854]
[1725298377710,7.91947,2525.5,2525.0,4.04735854]
[1725298378005,3.95972,2525.5,2525.0,4.04735854]
[1725298378413,3.95972,2525.5,2525.0,8.00766854]
[1725298378633,3.95941,2525.7,2525.2,6.41428]
[1725298378835,7.91883,2525.7,2525.3,0.08726132]
[1725298379181,7.91883,2525.7,2525.2,6.41428]
[1725298379182,3.95941,2525.7,2525.2,6.41428]
[1725298379316,3.95941,2525.7,2525.4,0.08717574]
[1725298379511,3.95941,2525.7,2525.2,11.29547469]
[1725298379830,3.9594,2525.7,2525.5,0.08711136]
[1725298380140,3.9594,2525.7,2525.6,0.0869763]
[1725298380539,3.95955,2525.6,2525.2,2.4542]
[1725298381642,3.95937,2525.7,2525.2,6.41425]
[1725298381809,3.95937,2525.7,2525.2,7.33556868]
[1725298382157,10.60652093,2525.9,2525.2,7.33556868]
[1725298382158,3.9591,2525.9,2525.3,3.95989]
[1725298382325,3.9591,2525.9,2525.4,4.69315087]
[1725298382870,3.95909,2525.9,2525.4,4.69315087]
[1725298383007,7.91818,2525.9,2525.4,4.69315087]
[1725298383210,7.91816,2525.9,2525.4,4.69315087]
[1725298383451,3.95907,2525.9,2525.4,4.69315087]
[1725298383660,3.95907,2525.9,2525.4,8.65283087]
[1725298384010,3.95907,2525.9,2525.4,4.69315087]
[1725298384560,7.91756,2526.1,2525.6,3.95935]
[1725298385055,3.95883,2526.0,2525.6,3.95935]
[1725298385356,3.95877,2526.1,2525.6,3.95935]
[1725298386167,3.95875,2526.1,2525.6,3.95935]
[1725298386664,3.95899,2525.9,2525.5,0.46931509]
[1725298386864,3.95899,2525.9,2525.4,4.69315087]
[1725298387072,7.91757,2526.1,2525.5,3.95959]
[1725298387283,3.95875,2526.1,2525.6,3.95943]
[1725298387550,3.95875,2526.1,2525.7,3.95927]
[1725298388248,3.95854,2526.2,2525.8,3.95913]
[1725298388446,3.95868,2526.1,2525.8,19.98]
[1725298390172,3.95853,2526.2,2525.8,19.98]
[1725298390494,3.95898,2525.9,2525.8,19.98]
[1725298390660,7.91796,2525.9,2525.8,19.98]
[1725298390859,7.91796,2525.9,2525.2,12.6374]
[1725298390860,14.8552829,2525.9,2525.2,0.3974]
[1725298391078,3.95977,2525.4,2524.9,24.33787]
[1725298391300,3.95977,2525.4,2524.9,23.94047]
[1725298392651,3.95977,2525.4,2525.0,3.96038]
[1725298392853,3.95977,2525.4,2525.0,7.377467]
[1725298393380,3.95977,2525.4,2525.0,3.417087]
[1725298393585,3.96,2525.3,2524.9,19.98]
[1725298394150,3.95977,2525.4,2524.9,19.98]
[1725298394346,3.95962,2525.5,2525.0,3.96037]
[1725298394574,3.95978,2525.4,2525.0,3.02104]
[1725298394789,3.95978,2525.4,2524.9,19.98]
[1725298395353,3.95978,2525.4,2524.9,23.94052]
[1725298395956,3.96039,2525.0,2524.9,19.98]
[1725298396751,3.96039,2525.0,2524.7,19.98]
[1725298397186,3.96102,2524.6,2524.4,19.98]
[1725298397387,3.96102,2524.6,2524.3,19.98]
[1725298398404,6.57602093,2525.0,2524.3,23.94148]
[1725298398405,3.96088,2524.7,2524.3,23.94148]
[1725298398599,3.96088,2524.7,2524.3,27.704229]
[1725298399208,7.92123,2524.9,2524.4,3.96131]
[1725298399683,3.96075,2524.8,2524.3,27.704139]
[1725298399883,3.96056,2524.9,2524.3,27.704139]
[1725298399884,3.96087,2524.7,2524.3,27.704139]
[1725298400088,3.96103,2524.6,2524.3,19.98]
[1725298400253,2.3519,2524.8,2524.3,19.98]
[1725298400494,3.96127,2524.5,2524.0,23.65197269]
[1725298401569,3.96142,2524.4,2524.0,19.98]
[1725298402118,3.96127,2524.5,2523.8,12.87915692]
[1725298402119,3.96189,2524.1,2523.8,27.26]
[1725298402423,3.96219,2523.9,2523.7,19.98]
[1725298402631,3.96172,2524.2,2523.7,27.95721556]
[1725298402843,3.96143,2524.4,2523.7,27.95721556]
[1725298402844,3.96149,2524.3,2523.8,3.96224]
[1725298402977,3.96149,2524.3,2523.8,7.15418556]
[1725298404037,2.3519,2524.5,2523.8,3.19194556]
[1725298404294,4.22412093,2525.9,2524.2,3.96157]
[1725298404295,3.9608,2524.8,2524.2,3.96157]
[1725298404445,7.92164,2524.8,2524.3,3.96147]
[1725298404746,3.96102,2524.6,2524.2,3.96157]
[1725298404936,3.96102,2524.6,2524.2,7.48783876]
[1725298405311,7.92159,2524.8,2524.3,3.9614]
[1725298405507,3.96079,2524.8,2524.3,4.04707648]
[1725298405844,7.92158,2524.8,2524.3,4.04707648]
[1725298405999,3.96094,2524.7,2524.3,0.08567648]
[1725298406634,3.96079,2524.8,2524.3,5.200663]
[1725298406901,2.3613,2525.2,2524.4,2.315]
[1725298407128,2.3613,2525.2,2524.8,3.96068]
[1725298407453,7.91913,2525.6,2525.0,3.96024]
[1725298407648,3.95963,2525.5,2525.0,3.96024]
[1725298407850,3.95983,2525.4,2525.1,0.08493486]
[1725298408206,3.96023,2525.1,2524.9,19.98]
[1725298408429,7.92056,2525.1,2524.9,19.98]
[1725298408631,3.96039,2525.0,2524.9,19.98]
[1725298408857,3.96023,2525.1,2524.9,19.98]
[1725298409018,3.9597,2525.5,2525.0,3.9603]
[1725298409219,3.95938,2525.7,2524.9,24.4759]
[1725298409418,6.22895,2525.8,2525.2,3.95994]
[1725298409624,3.95904,2525.9,2525.3,20.05919419]
[1725298409842,7.91816,2525.9,2525.3,20.375994]
[1725298410153,3.95904,2525.9,2525.3,20.375994]
[1725298410706,6.22851,2526.1,2525.4,0.07918977]
[1725298410948,3.95843,2526.3,2525.6,3.95932]
[1725298411115,7.91693,2526.3,2525.6,3.95932]
[1725298411316,3.95843,2526.3,2525.6,3.95932]
[1725298411956,3.95843,2526.3,2525.7,0.450932]
[1725298412763,3.95852,2526.2,2525.7,0.450932]
[1725298413216,3.95867,2526.1,2525.7,0.450932]
[1725298413413,3.95867,2526.1,2525.5,4.50952]
[1725298414029,3.95867,2526.1,2525.4,6.3239]
[1725298414030,3.95909,2525.9,2525.2,3.96]
[1725298414211,4.77741109,2525.9,2525.2,3.96]
[1725298414440,4.77741109,2525.9,2525.2,7.91996]
[1725298414441,3.95909,2525.9,2525.2,7.91996]
[1725298414628,3.95948,2525.6,2525.1,2.7016]
[1725298414827,3.95963,2525.5,2524.8,6.26519]
[1725298415016,3.95963,2525.5,2524.9,2.624519]
[1725298415215,3.95963,2525.5,2524.8,6.26519]
[1725298415412,3.95987,2525.4,2524.8,6.26519]
[1725298415716,3.95987,2525.4,2524.8,10.22579]
[1725298416024,3.95987,2525.4,2524.8,6.26519]
[1725298416224,3.95987,2525.4,2524.8,8.055504]
[1725298416427,3.96003,2525.3,2524.7,3.96085]
[1725298417918,3.96008,2525.2,2524.6,11.24092]
[1725298418260,3.96008,2525.2,2524.7,19.98]
[1725298418953,6.876801,2525.4,2524.7,19.98]
[1725298418954,3.96041,2525.0,2524.7,19.98]
[1725298419299,3.96056,2524.9,2524.5,19.98]
[1725298419821,3.96074,2524.8,2524.3,7.28]
[1725298420149,3.96074,2524.8,2524.3,8.674311]
[1725298420653,3.96074,2524.8,2524.4,0.08457256]
[1725298422165,3.96118,2524.5,2524.4,0.08457256]
[1725298422332,4.753403,2524.5,2524.4,0.08457256]
[1725298422539,3.96118,2524.5,2524.4,0.08457256]
[1725298422732,3.96118,2524.5,2524.0,3.96196]
[1725298423196,7.92247,2524.5,2524.1,0.08523952]
[1725298423409,3.96118,2524.5,2524.1,0.08523952]
[1725298425064,7.92245,2524.5,2524.1,0.08523952]
[1725298425367,3.96118,2524.5,2524.1,0.08523952]
[1725298425564,7.92244,2524.5,2524.1,0.08523952]
[1725298425787,3.96118,2524.5,2524.1,0.08523952]
[1725298426669,7.92244,2524.5,2524.1,0.08523952]
[1725298426869,3.9615,2524.3,2524.1,0.08523952]
[1725298427271,4.753424,2524.5,2524.1,0.08523952]
[1725298427600,3.96118,2524.5,2524.2,0.08543678]
[1725298427972,2.3922,2524.3,2523.9,27.26]
[1725298428176,3.96176,2524.2,2523.9,27.26]
[1725298428472,3.96196,2524.0,2523.5,3.96274]
[1725298428667,3.96196,2524.0,2523.5,19.98]
[1725298428668,3.96223,2523.9,2523.5,19.98]
[1725298429057,3.96228,2523.8,2523.5,19.98]
[1725298429771,3.96212,2523.9,2523.5,19.98]
[1725298430631,3.96259,2523.6,2523.5,19.98]
[1725298430912,3.9629,2523.4,2523.3,1.22767269]
[1725298431873,3.96276,2523.5,2523.3,1.22767269]
[1725298432495,6.41593,2523.7,2523.3,1.22767269]
[1725298432710,3.9626,2523.6,2523.3,1.22767269]
[1725298433303,3.96278,2523.5,2523.3,1.22767269]
[1725298434104,4.358843,2523.6,2523.3,1.22767269]
[1725298434279,3.96259,2523.6,2523.3,1.22767269]
[1725298434662,3.96275,2523.5,2523.3,1.22767269]
[1725298434963,7.92528,2523.6,2523.3,1.22767269]
[1725298435603,3.96259,2523.6,2523.4,0.08751607]
[1725298435806,3.96223,2523.9,2523.4,4.05037607]
[1725298437914,3.9623,2523.8,2523.4,0.08751607]
[1725298438863,3.96245,2523.7,2523.4,0.08751607]
[1725298439331,3.96245,2523.7,2523.2,3.96314]
[1725298439518,3.96245,2523.7,2523.5,0.08730295]
[1725298439678,3.96245,2523.7,2523.2,3.96314]
[1725298439880,3.96245,2523.7,2523.6,0.08725265]
[1725298440183,3.96245,2523.7,2523.6,0.0873305]
[1725298440395,3.96264,2523.6,2523.1,6.24876]
[1725298440595,3.96137,2524.4,2523.9,3.96207]
[1725298440799,3.96151,2524.3,2523.7,22.3568]
[1725298440968,3.96181,2524.1,2524.0,0.08714347]
[1725298441164,3.96227,2523.8,2523.7,19.98]
[1725298441404,3.96227,2523.8,2523.6,7.28]
[1725298441405,3.96227,2523.8,2523.4,20.377]
[1725298441610,3.96227,2523.8,2523.4,24.3399]
[1725298441971,3.96243,2523.7,2523.4,19.98]
[1725298443008,3.96261,2523.6,2523.4,19.98]
[1725298443314,3.96275,2523.5,2523.1,1.23735028]
[1725298443612,2.353,2523.6,2523.1,1.23735028]
[1725298443613,3.96322,2523.2,2523.1,1.23735028]
[1725298444112,7.92644,2523.2,2523.1,1.23735028]
[1725298444322,6.44932,2523.2,2523.1,1.23735028]
[1725298444509,3.96294,2523.4,2523.1,1.23735028]
[1725298444713,3.96317,2523.3,2523.1,1.23735028]
[1725298445107,3.96322,2523.2,2523.1,1.23735028]
[1725298446126,3.96322,2523.2,2522.6,4.36103]
[1725298447209,3.96322,2523.2,2522.7,3.96392]
[1725298448229,8.59393627,2523.4,2522.8,3.96383]
[1725298448528,3.96322,2523.2,2522.7,3.96391]
[1725298448724,8.59394627,2523.4,2522.8,3.96383]
[1725298448899,4.63088627,2523.4,2522.8,3.96383]
[1725298449097,3.96315,2523.3,2522.8,3.96383]
[1725298450331,4.63088627,2523.4,2522.8,3.96383]
[1725298450535,3.96317,2523.3,2522.9,0.08771819]
[1725298450844,3.96324,2523.2,2522.9,0.08771819]
[1725298452302,3.96339,2523.1,2522.9,0.08771819]
[1725298452531,3.96369,2522.9,2522.5,3.96426]
[1725298452701,3.96369,2522.9,2522.6,0.08786212]
[1725298452901,3.96369,2522.9,2522.4,3.96446]
[1725298453304,3.96369,2522.9,2522.5,0.08791247]
[1725298455020,3.96402,2522.7,2522.5,0.08791247]
[1725298455391,3.96402,2522.7,2522.3,3.96453]
[1725298455593,3.96402,2522.7,2522.6,0.08861259]
[1725298455794,3.96402,2522.7,2522.3,3.96453]
[1725298456012,3.96402,2522.7,2522.6,0.08861259]
[1725298456635,3.96402,2522.7,2522.2,3.96476]
[1725298456943,3.96402,2522.7,2522.3,3.96462]
[1725298457237,3.96402,2522.7,2522.4,0.08877703]
[1725298459195,6.44565,2523.0,2522.5,3.9642]
[1725298459393,2.4821,2523.0,2522.5,3.9642]
[1725298459601,3.0,2523.3,2522.8,3.96378]
[1725298459602,9.45395,2523.3,2522.8,3.96378]
[1725298459910,9.45395,2523.3,2522.9,0.08856073]
[1725298459911,9.45388,2523.3,2522.9,0.08856073]
[1725298460309,3.9633,2523.2,2522.9,0.08856073]
[1725298460513,3.9633,2523.2,2522.7,3.964]
[1725298460747,3.9633,2523.2,2522.8,0.08854732]
[1725298461550,3.96345,2523.1,2522.8,0.08854732]
[1725298461738,3.96345,2523.1,2522.6,3.96403]
[1725298461936,3.96345,2523.1,2522.7,0.08859766]
[1725298462881,3.96361,2523.0,2522.7,0.08859766]
[1725298463035,3.96374,2522.9,2522.7,0.08859766]
[1725298463230,2.4908,2523.3,2522.4,2.4335]
[1725298463435,2.4908,2523.3,2522.3,7.28]
[1725298463436,7.92738,2522.9,2522.8,0.08854732]
[1725298463778,3.96447,2522.4,2522.3,7.28]
[1725298464180,3.96447,2522.4,2522.3,7.36879905]
[1725298465583,3.96447,2522.4,2522.3,0.08879905]
[1725298467494,6.26753,2522.5,2522.3,0.08879905]
[1725298467692,3.96418,2522.6,2522.0,4.36209]
[1725298468021,6.40813,2522.8,2522.1,3.96493]
[1725298468232,6.40813,2522.8,2522.3,3.96462]
[1725298468233,3.96393,2522.8,2522.3,3.96462]
[1725298468434,3.96361,2523.0,2522.5,3.9643]
[1725298468613,3.96369,2522.9,2522.5,3.9643]
[1725298468815,3.96369,2522.9,2522.6,0.0888959]
[1725298469199,3.96369,2522.9,2522.4,4.74459452]
[1725298469398,3.96369,2522.9,2522.7,0.08610516]
[1725298469617,3.96369,2522.9,2522.4,4.74459452]
[1725298469897,3.96369,2522.9,2522.4,0.78012452]
[1725298470207,3.96369,2522.9,2522.5,0.08620585]
[1725298472941,3.96385,2522.8,2522.5,0.08620585]
[1725298473355,3.96385,2522.8,2522.3,23.94463]
[1725298473649,3.96385,2522.8,2522.4,0.08636953]
[1725298475807,7.9278,2522.8,2522.4,0.08636953]
[1725298476009,3.96403,2522.7,2522.4,0.08636953]
[1725298476210,3.96432,2522.5,2522.4,0.08636953]
[1725298477046,7.92864,2522.5,2522.4,0.08636953]
[1725298477555,3.96465,2522.3,2521.8,23.94542]
[1725298479345,2.4443,2522.2,2521.8,19.98]
[1725298479551,6.805675,2522.2,2521.6,3.96571]
[1725298479749,3.96507,2522.1,2521.6,3.96571]
[1725298479906,2.4443,2522.2,2521.6,1.93196003]
[1725298480107,6.27549,2522.4,2521.9,3.96523]
[1725298480310,3.96442,2522.5,2522.0,3.96506]
[1725298480510,3.96427,2522.6,2521.9,6.39007]
[1725298480511,3.9645,2522.4,2521.9,6.39007]
[1725298480724,3.9645,2522.4,2522.0,0.08657097]
[1725298483052,4.360677,2522.6,2522.0,0.08657097]
[1725298483363,3.96449,2522.4,2522.0,3.965]
[1725298483662,3.96449,2522.4,2522.1,0.08696693]
[1725298484158,7.92904,2522.4,2522.1,0.08696693]
[1725298484326,7.92907,2522.4,2521.8,7.93061]
[1725298484527,3.96464,2522.3,2521.9,0.08706767]
[1725298484755,4.86375547,2522.4,2522.0,3.96507]
[1725298484956,4.86375547,2522.4,2522.1,0.08700945]
[1725298485163,8.82834547,2522.4,2521.9,3.96517]
[1725298485342,3.96465,2522.3,2522.0,0.08705981]
[1725298486218,3.9641,2522.7,2522.0,4.05214981]
[1725298486552,2.4204,2522.8,2522.0,4.05214981]
[1725298486553,2.4204,2522.8,2522.1,6.46142]
[1725298486855,2.4204,2523.0,2522.6,7.92822]
[1725298487042,2.4204,2523.0,2522.6,3.96407]
[1725298487417,2.4204,2523.0,2522.7,0.08670024]
[1725298487753,3.96325,2523.2,2522.7,0.08670024]
[1725298487938,3.9634,2523.1,2522.7,0.08670024]
[1725298488518,3.96325,2523.2,2522.7,0.08670024]
[1725298489353,4.986422,2523.2,2522.7,0.08670024]
[1725298490063,3.96338,2523.1,2522.7,0.08670024]
[1725298491660,1.023172,2523.2,2522.7,0.08670024]
[1725298491972,3.96371,2522.9,2522.7,0.08670024]
[1725298492158,3.96371,2522.9,2522.5,19.98]
[1725298492352,3.96371,2522.9,2522.4,3.96447]
[1725298492660,7.92752,2522.9,2522.5,0.08642546]
[1725298492968,3.96401,2522.7,2522.5,0.08642546]
[1725298493166,3.96401,2522.7,2522.3,3.96462]
[1725298493318,3.96401,2522.7,2522.4,0.08649706]
[1725298494666,7.92811,2522.7,2522.4,0.08649706]
[1725298494862,3.96419,2522.6,2522.4,0.08649706]
[1725298495070,3.96419,2522.6,2522.2,23.94466]
[1725298495371,7.2445612,2522.7,2522.5,0.08619164]
[1725298495520,6.34871,2522.7,2522.6,0.0861413]
[1725298495865,3.96378,2522.9,2522.2,19.98]
[1725298496065,2.3375,2523.2,2522.7,7.92786]
[1725298496235,3.96322,2523.2,2522.7,3.96389]
[1725298496442,3.96322,2523.2,2522.8,0.08604062]
[1725298497361,3.96307,2523.3,2522.8,4.04988062]
[1725298498386,6.30042,2523.4,2522.9,3.96367]
[1725298498603,3.96307,2523.3,2523.0,0.08593995]
[1725298499894,3.96362,2523.0,2522.5,31.22419]
[1725298500099,0.396362,2522.9,2522.5,35.18843]
[1725298500297,3.96362,2523.0,2522.6,3.96412]
[1725298501063,3.96338,2523.1,2522.5,31.22419]
[1725298501268,4.359713,2523.1,2522.5,31.22419]
[1725298501509,3.96338,2523.1,2522.6,3.96406]
[1725298501654,3.96292,2523.4,2522.8,3.96374]
[1725298501853,6.26898,2523.6,2523.0,3.96339]
[1725298502052,3.96253,2523.7,2522.9,0.47626698]
[1725298502254,6.2685,2523.9,2523.3,3.96295]
[1725298502599,2.3063,2524.1,2523.7,3.96241]
[1725298502799,3.96201,2524.0,2523.3,4.359235]
[1725298502959,7.92474,2523.8,2523.3,3.96294]
[1725298503311,3.96267,2523.6,2522.9,4.36057]
[1725298503453,0.792474,2523.7,2523.1,3.96323]
[1725298503647,6.33884,2524.2,2523.4,2.4041]
[1725298503966,3.96199,2524.0,2523.4,6.3669]
[1725298504167,0.396199,2523.9,2523.4,10.32967]
[1725298504367,3.96199,2524.0,2523.4,10.32967]
[1725298504569,3.96199,2524.0,2523.5,3.96268]
[1725298504983,3.96181,2524.1,2523.5,3.96268]
[1725298505186,3.0,2524.2,2523.7,3.96235]
[1725298505402,3.0,2524.2,2523.8,3.96227]
[1725298506303,10.26292,2524.5,2523.8,3.96218]
[1725298506473,0.630159,2524.4,2523.9,3.9621]
[1725298506677,6.30159,2524.5,2523.9,3.9621]
[1725298506678,3.96096,2524.7,2523.9,0.07924118]
[1725298506879,4.357056,2524.7,2524.1,3.96171]
[1725298507477,8.318006,2524.7,2524.1,3.96171]
[1725298507720,3.96102,2524.6,2524.1,3.96171]
[1725298508018,4.357046,2524.7,2523.9,3.96207]
[1725298508019,3.9612,2524.5,2523.9,3.96207]
[1725298508228,4.7930066,2524.5,2523.9,3.96207]
[1725298508378,3.9612,2524.5,2523.9,3.96207]
[1725298508578,3.9612,2524.5,2524.0,3.96191]
[1725298509671,7.92247,2524.5,2523.9,3.96207]
[1725298509877,3.9612,2524.5,2523.9,7.92409]
[1725298510179,4.753447,2524.5,2523.9,27.90409]
[1725298510628,4.753447,2524.5,2524.0,4.04588952]
[1725298511136,3.96094,2524.7,2524.2,3.96165]
[1725298511435,3.96094,2524.7,2524.3,0.08384867]
[1725298511808,7.9219,2524.7,2524.3,0.08384867]
[1725298512194,7.9219,2524.7,2524.1,3.96173]
[1725298512439,3.96094,2524.7,2524.2,0.08389895]
[1725298513309,3.96094,2524.7,2524.2,4.04546895]
[1725298514309,3.96094,2524.7,2524.2,4.04553895]
[1725298514527,3.96094,2524.7,2524.2,0.08389895]
[1725298515123,3.96094,2524.7,2524.2,4.04553895]
[1725298515326,3.96102,2524.6,2524.2,0.08389895]
[1725298515526,3.96137,2524.4,2524.2,0.08389895]
[1725298515728,3.96137,2524.4,2523.9,23.94197]
[1725298516049,3.96118,2524.5,2524.0,27.90383]
[1725298516229,6.40563,2524.6,2524.1,3.9618]
[1725298516594,6.40563,2524.6,2524.2,0.08292951]
[1725298517443,7.92277,2524.4,2524.2,0.08292951]
[1725298517645,3.96149,2524.3,2524.2,0.08292951]
[1725298517793,3.96149,2524.3,2524.0,19.98]
[1725298517794,3.96177,2524.2,2524.0,19.98]
[1725298517999,3.96177,2524.2,2524.1,0.08305761]
[1725298522210,3.96177,2524.2,2523.8,3.96227]
[1725298522439,3.96177,2524.2,2523.9,0.08325017]
[1725298528508,7.9235,2524.2,2523.9,0.08325017]
[1725298528659,3.96174,2524.2,2523.9,0.08325017]
[1725298528857,2.4246,2524.1,2523.6,19.98]
[1725298529063,3.96204,2524.0,2523.5,31.22274]
[1725298529421,3.96204,2524.0,2523.5,34.1260081]
[1725298530004,3.96214,2523.9,2523.4,7.92562]
[1725298530709,3.96214,2523.9,2523.4,3.96279]
[1725298530908,3.96229,2523.8,2523.3,7.28]
[1725298531110,3.96168,2524.2,2523.2,24.339423]
[1725298531111,3.96221,2523.9,2523.5,3.96274]
[1725298531320,3.96221,2523.9,2523.5,4.359014]
[1725298531602,3.96221,2523.9,2523.5,3.96274]
[1725298531809,3.96197,2524.0,2523.5,7.9254]
[1725298531966,10.39639,2524.1,2523.6,3.96257]
[1725298532311,3.96152,2524.3,2523.8,3.96226]
[1725298532513,3.96152,2524.3,2523.8,3.9622]
[1725298532863,3.96152,2524.3,2523.8,7.92439]
[1725298533176,3.96152,2524.3,2523.8,4.76255311]
[1725298533779,2.3337,2524.7,2524.2,3.96155]
[1725298534020,3.96079,2524.8,2524.3,3.96139]
[1725298534243,6.29419,2525.0,2524.4,3.9613]
[1725298534508,3.95983,2525.4,2524.4,3.9613]
[1725298534509,6.2938,2525.2,2524.6,3.96092]
[1725298534726,6.2938,2525.2,2524.7,0.792201]
[1725298535018,6.2938,2525.2,2524.7,4.753041]
[1725298536847,2.3337,2525.2,2524.7,4.753041]
[1725298537199,6.29387,2525.2,2524.7,0.792201]
[1725298537845,3.96033,2525.1,2524.7,0.792201]
[1725298538842,2.2525,2524.8,2524.6,19.98]
[1725298539214,6.43778,2525.0,2524.6,19.98]
[1725298539614,3.96017,2525.2,2524.6,23.102133]
[1725298539841,2.4773,2525.3,2524.6,23.102133]